bitfinex/quotes_BTCUSD_20250719
["timestamp","ask_amount","ask_price","bid_price","bid_amount"]
[1752924661208,0.23078032,118420.0,118410.0,0.0314]
[1752924661414,0.22233581,118420.0,118410.0,0.49488488]
[1752924661583,0.23078025,118420.0,118410.0,0.49785488]
[1752924662120,0.00844387,118420.0,118410.0,0.49785488]
[1752924662337,0.02533226,118420.0,118410.0,0.49785488]
[1752924662551,0.01688796,118420.0,118410.0,0.49785488]
[1752924662765,0.01888796,118420.0,118410.0,0.49785488]
[1752924662973,0.22433538,118420.0,118410.0,0.49785488]
[1752924663189,0.01888789,118420.0,118410.0,0.49785488]
[1752924663438,0.03577628,118420.0,118410.0,0.49785488]
[1752924664038,0.24966814,118420.0,118410.0,0.49785488]
[1752924664265,0.41011466,118420.0,118410.0,0.49785488]
[1752924664469,0.19622322,118420.0,118410.0,0.49785488]
[1752924664905,0.18777913,118420.0,118410.0,0.49785488]
[1752924665431,0.39322655,118420.0,118410.0,0.49785488]
[1752924666670,0.002,118420.0,118410.0,0.49785488]
[1752924667083,0.002,118420.0,118410.0,0.53773173]
[1752924669032,0.01044387,118420.0,118410.0,0.53773173]
[1752924669227,0.01888789,118420.0,118410.0,0.53773173]
[1752924669448,0.02733198,118420.0,118410.0,0.67197173]
[1752924669798,0.002,118420.0,118410.0,1.01197173]
[1752924670404,0.002,118420.0,118410.0,1.21453173]
[1752924670753,0.002,118420.0,118410.0,1.08029173]
[1752924670975,0.002,118420.0,118410.0,1.21453173]
[1752924675054,0.002,118420.0,118410.0,3.09133754]
[1752924675269,0.002,118420.0,118410.0,3.09978263]
[1752924676443,0.002,118420.0,118410.0,3.10822764]
[1752924676586,0.002,118420.0,118410.0,3.30523005]
[1752924676781,0.002,118420.0,118410.0,3.11943515]
[1752924677199,0.002,118420.0,118410.0,3.12788038]
[1752924677394,0.002,118420.0,118410.0,3.29678503]
[1752924677601,0.002,118420.0,118410.0,3.09978277]
[1752924677873,0.002,118420.0,118410.0,3.09133761]
[1752924678097,0.002,118420.0,118410.0,2.67797973]
[1752924678256,0.002,118420.0,118410.0,2.7038775]
[1752924678428,0.002,118420.0,118410.0,2.71232273]
[1752924678671,0.002,118420.0,118410.0,2.88967254]
[1752924678960,0.002,118420.0,118410.0,2.7038775]
[1752924679155,0.002,118420.0,118410.0,2.6630855]
[1752924680125,0.002,118420.0,118410.0,2.0715825]
[1752924681075,0.002,118420.0,118410.0,1.9539565]
[1752924681460,0.01044387,118420.0,118410.0,1.8600545]
[1752924681670,0.002,118420.0,118410.0,1.8600545]
[1752924681870,0.01044387,118420.0,118410.0,1.5698885]
[1752924682148,0.002,118420.0,118410.0,1.5698885]
[1752924683449,0.002,118420.0,118410.0,1.4440905]
[1752924684765,0.01044402,118420.0,118410.0,1.4440905]
[1752924684996,0.002,118420.0,118410.0,1.4440905]
[1752924686841,0.01044387,118420.0,118410.0,1.4440905]
[1752924687565,0.002,118420.0,118410.0,1.4440905]
[1752924688014,0.002,118420.0,118410.0,1.4439905]
[1752924692863,0.01044394,118420.0,118410.0,1.4439905]
[1752924693224,0.01044387,118420.0,118410.0,1.4439905]
[1752924693784,0.002,118420.0,118410.0,1.4439905]
[1752924697306,0.002,118420.0,118410.0,1.59791614]
[1752924697731,0.01044387,118420.0,118410.0,1.59791614]
[1752924698447,0.002,118420.0,118410.0,1.59791614]
[1752924698620,0.002,118420.0,118410.0,1.4439905]
[1752924699173,0.01044387,118420.0,118410.0,1.4439905]
[1752924699378,0.002,118420.0,118410.0,1.4439905]
[1752924700954,0.002,118420.0,118410.0,1.59791614]
[1752924701177,0.01044387,118420.0,118410.0,1.59791614]
[1752924701382,0.002,118420.0,118410.0,1.59791614]
[1752924703502,0.002,118420.0,118410.0,1.4439905]
[1752924703916,0.002,118420.0,118410.0,1.59791614]
[1752924704503,0.01044394,118420.0,118410.0,1.59767614]
[1752924704707,0.01044387,118420.0,118410.0,1.4437505]
[1752924705033,0.01044387,118420.0,118410.0,1.59767614]
[1752924705490,0.02733205,118420.0,118410.0,1.59767614]
[1752924705699,0.01888789,118420.0,118410.0,1.59767614]
[1752924705920,0.01888789,118420.0,118410.0,1.4437505]
[1752924706134,0.01044387,118420.0,118410.0,1.59767614]
[1752924706282,0.01888781,118420.0,118410.0,1.59767614]
[1752924706874,0.002,118420.0,118410.0,1.59767614]
[1752924707084,0.002,118420.0,118410.0,1.67070714]
[1752924707894,0.01044387,118420.0,118410.0,1.67070714]
[1752924709086,0.01888781,118420.0,118410.0,1.67070714]
[1752924710253,0.01044387,118420.0,118410.0,1.67070714]
[1752924710429,0.01044387,118420.0,118410.0,1.33414714]
[1752924710642,0.01044387,118420.0,118410.0,1.67062714]
[1752924711056,0.01888789,118420.0,118410.0,1.67062714]
[1752924711863,0.5162202,118420.0,118410.0,0.75980028]
[1752924712063,0.5314202,118420.0,118410.0,1.09980028]
[1752924713042,0.22356892,118420.0,118410.0,1.09980028]
[1752924713274,0.5314202,118420.0,118410.0,1.09980028]
[1752924713551,0.52297604,118420.0,118410.0,1.09980028]
[1752924713731,0.3690504,118420.0,118410.0,1.09980028]
[1752924716083,0.52297604,118420.0,118410.0,1.09980028]
[1752924716889,0.52297604,118420.0,118410.0,0.96584028]
[1752924721177,0.52297604,118420.0,118410.0,1.09972028]
[1752924728329,0.53137754,118420.0,118410.0,0.62584028]
[1752924728501,0.53137754,118420.0,118410.0,0.75968028]
[1752924729901,0.53137754,118420.0,118410.0,0.55716028]
[1752924730924,0.68530318,118420.0,118410.0,0.42332028]
[1752924731324,0.53137754,118420.0,118410.0,0.55712028]
[1752924732152,0.68530318,118420.0,118410.0,0.42332028]
[1752924732357,0.68530318,118420.0,118410.0,0.55712028]
[1752924732933,0.68430318,118420.0,118410.0,0.55712028]
[1752924733377,0.68530318,118420.0,118410.0,0.55712028]
[1752924733936,0.68430318,118420.0,118410.0,0.55712028]
[1752924734139,0.68530318,118420.0,118410.0,0.55712028]
[1752924737492,0.67690168,118420.0,118410.0,0.55712028]
[1752924745071,0.67690168,118420.0,118410.0,0.47153]
[1752924745841,0.21512476,118420.0,118410.0,0.47153]
[1752924746044,0.67690168,118420.0,118410.0,0.47153]
[1752924752481,0.67690168,118420.0,118410.0,0.47145]
[1752924754557,0.81054168,118420.0,118410.0,0.47145]
[1752924754973,0.81054168,118420.0,118410.0,0.33781]
[1752924755177,0.81054168,118420.0,118380.0,0.03473402]
[1752924755178,0.18582599,118390.0,118380.0,0.03473402]
[1752924755433,0.18582599,118390.0,118380.0,0.2559143]
[1752924755593,0.34186163,118390.0,118380.0,0.2559143]
[1752924756422,0.34186163,118390.0,118380.0,0.2569143]
[1752924757025,0.33975163,118390.0,118380.0,0.2569143]
[1752924757276,0.33975163,118390.0,118380.0,0.2589143]
[1752924757700,0.33975163,118390.0,118380.0,0.1253143]
[1752924757905,0.33975163,118390.0,118380.0,0.2589143]
[1752924758364,0.18582599,118390.0,118380.0,0.2589143]
[1752924758592,0.33975163,118390.0,118380.0,0.2589143]
[1752924759366,0.34810497,118390.0,118380.0,0.2589143]
[1752924761800,0.34810497,118390.0,118380.0,0.1253143]
[1752924762354,0.34810497,118390.0,118380.0,0.2588743]
[1752924768449,0.33975163,118390.0,118380.0,0.2588743]
[1752924768903,0.18582599,118390.0,118380.0,0.2588743]
[1752924769113,0.33975163,118390.0,118380.0,0.2588743]
[1752924771424,0.18582599,118390.0,118380.0,0.2588743]
[1752924771631,0.33975163,118390.0,118380.0,0.2588743]
[1752924772099,0.33975163,118390.0,118380.0,0.41279994]
[1752924772100,0.02533875,118390.0,118380.0,0.41279994]
[1752924772218,0.16892941,118410.0,118380.0,0.53522558]
[1752924772424,0.1773349,118420.0,118410.0,0.0318]
[1752924772654,0.18576337,118430.0,118420.0,0.0318]
[1752924772908,0.33968901,118430.0,118420.0,0.12253028]
[1752924773885,0.34802308,118430.0,118420.0,0.12253028]
[1752924774099,0.34805593,118430.0,118420.0,0.12253028]
[1752924774325,0.33968901,118430.0,118420.0,0.12253028]
[1752924774562,0.33968901,118430.0,118420.0,0.15084367]
[1752924775032,0.39102376,118430.0,118420.0,0.15084367]
[1752924775484,0.39402376,118430.0,118420.0,0.15084367]
[1752924776356,0.39702376,118430.0,118420.0,0.15084367]
[1752924779232,0.38858024,118430.0,118420.0,0.15084367]
[1752924779432,0.18331985,118430.0,118420.0,0.15084367]
[1752924779630,0.38858024,118430.0,118420.0,0.15084367]
[1752924781377,0.39069024,118430.0,118420.0,0.15084367]
[1752924783416,0.39069024,118430.0,118420.0,0.12253028]
[1752924783649,0.39069024,118430.0,118420.0,0.11731028]
[1752924783853,0.39366024,118430.0,118420.0,0.21887028]
[1752924784505,0.39069024,118430.0,118420.0,0.21887028]
[1752924785764,0.39069024,118430.0,118420.0,0.23487028]
[1752924786393,0.18542985,118430.0,118420.0,0.27816831]
[1752924786609,0.18331985,118430.0,118420.0,0.28137831]
[1752924787456,0.38858024,118430.0,118420.0,0.28137831]
[1752924788274,0.18331985,118430.0,118420.0,0.28137831]
[1752924788479,0.38858024,118430.0,118420.0,0.28137831]
[1752924796952,0.33727077,118430.0,118420.0,0.28137831]
[1752924797386,0.18331985,118430.0,118420.0,0.28137831]
[1752924797700,0.33727077,118430.0,118420.0,0.28137831]
[1752924802059,0.33940077,118430.0,118420.0,0.28137831]
[1752924804889,0.33940077,118430.0,118420.0,0.25600028]
[1752924805978,0.18544985,118430.0,118420.0,0.25600028]
[1752924806184,0.33940077,118430.0,118420.0,0.25600028]
[1752924808094,0.34237077,118430.0,118420.0,0.21871028]
[1752924809192,0.33940077,118430.0,118420.0,0.21871028]
[1752924809405,0.33940077,118430.0,118420.0,0.08551028]
[1752924809616,0.49632169,118430.0,118420.0,0.21871028]
[1752924809821,0.52872169,118430.0,118420.0,0.08551028]
[1752924809972,0.52872169,118430.0,118420.0,0.21867028]
[1752924810428,0.49632169,118430.0,118420.0,0.21867028]
[1752924810857,0.34237077,118430.0,118420.0,0.21867028]
[1752924811464,0.34237077,118430.0,118420.0,0.24384731]
[1752924815763,0.35867077,118430.0,118420.0,0.11068731]
[1752924815970,0.52812169,118430.0,118420.0,0.21863028]
[1752924817025,0.49632169,118430.0,118420.0,0.21863028]
[1752924817433,0.34237077,118430.0,118420.0,0.21863028]
[1752924818062,0.49632169,118430.0,118420.0,0.08551028]
[1752924818390,0.17734974,118410.0,118400.0,0.03498]
[1752924818559,0.33130066,118410.0,118400.0,0.1226243]
[1752924818699,0.33130066,118410.0,118400.0,0.13488673]
[1752924818901,0.33130066,118410.0,118400.0,0.26800673]
[1752924819575,0.33230066,118410.0,118400.0,0.26800673]
[1752924821322,0.33330066,118410.0,118400.0,0.26800673]
[1752924821985,0.33543066,118410.0,118400.0,0.1174943]
[1752924822185,0.33543066,118410.0,118400.0,0.2505743]
[1752924825065,0.3868322,118410.0,118400.0,0.2505743]
[1752924827813,0.18147974,118410.0,118400.0,0.2505743]
[1752924827994,0.3868322,118410.0,118400.0,0.2505743]
[1752924828231,0.3868322,118410.0,118400.0,0.27593973]
[1752924829584,0.3868322,118410.0,118400.0,0.27798973]
[1752924829794,0.18147974,118410.0,118400.0,0.27798973]
[1752924830005,0.3868322,118410.0,118400.0,0.28106973]
[1752924832810,0.3868322,118410.0,118400.0,0.2557043]
[1752924834518,0.18147974,118410.0,118400.0,0.2557043]
[1752924834790,0.3868322,118410.0,118400.0,0.2557043]
[1752924836751,0.18147974,118410.0,118400.0,0.2557043]
[1752924836986,0.3847022,118410.0,118400.0,0.2557043]
[1752924837188,0.3847022,118410.0,118400.0,0.28127473]
[1752924838125,0.17934974,118410.0,118400.0,0.28127473]
[1752924838341,0.002,118410.0,118400.0,0.48662719]
[1752924838626,0.002,118410.0,118400.0,0.82662719]
[1752924838876,0.01044459,118410.0,118400.0,0.82662719]
[1752924839438,0.01044473,118410.0,118400.0,0.82662719]
[1752924840630,0.01044466,118410.0,118400.0,0.82662719]
[1752924842558,0.01888946,118410.0,118400.0,0.82662719]
[1752924843438,0.01044466,118410.0,118400.0,0.82662719]
[1752924843636,0.01044466,118410.0,118400.0,0.62127473]
[1752924843783,0.01044466,118410.0,118400.0,0.82662719]
[1752924844734,0.01888939,118410.0,118400.0,0.82662719]
[1752924844930,0.01888939,118410.0,118400.0,0.92915549]
[1752924845502,0.002,118410.0,118400.0,0.92915549]
[1752924845676,0.002,118410.0,118400.0,0.95449449]
[1752924848890,0.002,118410.0,118400.0,0.96903534]
[1752924849118,0.002,118410.0,118400.0,1.13795425]
[1752924849415,0.002,118410.0,118400.0,0.66115458]
[1752924849592,0.002,118410.0,118400.0,0.96903534]
[1752924850426,0.002,118410.0,118400.0,1.13795425]
[1752924850640,0.002,118410.0,118400.0,0.96903534]
[1752924851306,0.002,118410.0,118400.0,0.94369634]
[1752924852739,0.002,118410.0,118400.0,1.14625634]
[1752924853351,0.002,118410.0,118400.0,0.83837558]
[1752924853558,0.002,118410.0,118400.0,1.14625634]
[1752924855534,0.002,118410.0,118400.0,1.31517525]
[1752924855738,0.002,118410.0,118400.0,1.66144119]
[1752924855953,0.002,118410.0,118400.0,3.64988499]
[1752924856245,0.002,118410.0,118400.0,3.64988506]
[1752924856710,0.002,118410.0,118400.0,3.63299325]
[1752924857162,0.002,118410.0,118400.0,3.64143919]
[1752924857409,0.002,118410.0,118400.0,3.37927519]
[1752924857829,0.002,118410.0,118400.0,3.37082925]
[1752924858034,0.002,118410.0,118400.0,3.12550734]
[1752924858452,0.002,118410.0,118400.0,3.11053334]
[1752924859070,0.002,118410.0,118400.0,3.06331434]
[1752924863419,0.002,118410.0,118400.0,3.07176028]
[1752924863654,0.002,118410.0,118400.0,3.06331434]
[1752924865622,0.002,118410.0,118400.0,3.07176028]
[1752924865810,0.002,118410.0,118400.0,2.84436334]
[1752924866022,0.002,118410.0,118400.0,1.48407634]
[1752924866423,0.002,118410.0,118400.0,2.60583134]
[1752924867038,0.002,118410.0,118400.0,2.46837934]
[1752924867457,0.002,118410.0,118400.0,1.68473658]
[1752924867679,0.002,118410.0,118400.0,1.99261734]
[1752924870015,0.002,118410.0,118400.0,2.01840404]
[1752924870830,0.002,118410.0,118400.0,1.92380404]
[1752924871093,0.002,118410.0,118400.0,1.77614804]
[1752924872394,0.002,118410.0,118400.0,1.46826728]
[1752924872628,0.002,118410.0,118400.0,1.77614804]
[1752924873571,0.002,118410.0,118400.0,1.46826728]
[1752924873981,0.002,118410.0,118400.0,1.77614804]
[1752924876692,0.002,118410.0,118400.0,1.64306804]
[1752924876954,0.002,118410.0,118400.0,1.77570804]
[1752924877406,0.09721091,118410.0,118400.0,0.9659743]
[1752924877630,0.26275645,118410.0,118400.0,1.0986143]
[1752924877857,0.10037091,118410.0,118400.0,1.0986143]
[1752924878073,0.0919259,118410.0,118400.0,1.0986143]
[1752924878285,0.09721091,118410.0,118400.0,1.25255468]
[1752924878690,0.09721084,118410.0,118400.0,1.25255468]
[1752924880396,0.0887659,118410.0,118400.0,1.25255468]
[1752924880608,0.0803211,118410.0,118400.0,1.0986143]
[1752924880821,0.02098932,118410.0,118400.0,1.27388468]
[1752924881040,0.01254459,118410.0,118400.0,1.28998468]
[1752924881248,0.002,118410.0,118400.0,1.28998468]
[1752924881466,0.002,118410.0,118400.0,1.44392506]
[1752924883156,0.01044459,118410.0,118400.0,1.28998468]
[1752924883646,0.002,118410.0,118400.0,1.28998468]
[1752924883974,0.002,118410.0,118400.0,1.44392506]
[1752924886145,0.002,118410.0,118400.0,1.28998468]
[1752924889514,0.01044459,118410.0,118400.0,1.28998468]
[1752924892497,0.01888932,118410.0,118400.0,1.1360443]
[1752924892706,0.01044459,118410.0,118400.0,1.28998468]
[1752924894019,0.002,118410.0,118400.0,1.44392506]
[1752924894684,0.002,118410.0,118400.0,1.28998468]
[1752924895786,0.002,118410.0,118400.0,1.08742468]
[1752924896208,0.01044466,118410.0,118400.0,1.08742468]
[1752924899931,0.002,118410.0,118400.0,1.08742468]
[1752924901393,0.01044459,118410.0,118400.0,1.08742468]
[1752924901602,0.002,118410.0,118400.0,1.08742468]
[1752924902318,0.01044459,118410.0,118400.0,1.08742468]
[1752924902569,0.002,118410.0,118400.0,1.08742468]
[1752924903571,0.01044459,118410.0,118400.0,1.08742468]
[1752924905427,0.002,118410.0,118400.0,1.08742468]
[1752924906649,0.01044459,118410.0,118400.0,1.08742468]
[1752924909557,0.002,118410.0,118400.0,1.08742468]
[1752924910201,0.01044459,118410.0,118400.0,1.08742468]
[1752924910404,0.002,118410.0,118400.0,1.08742468]
[1752924910629,0.01044459,118410.0,118400.0,1.08742468]
[1752924911122,0.002,118410.0,118400.0,1.08742468]
[1752924911422,0.002,118410.0,118400.0,1.11276368]
[1752924911818,0.01044459,118410.0,118400.0,1.11276368]
[1752924912461,0.002,118410.0,118400.0,1.11276368]
[1752924912691,0.01044459,118410.0,118400.0,1.11276368]
[1752924913306,0.002,118410.0,118400.0,1.11276368]
[1752924913905,0.01044459,118410.0,118400.0,1.11276368]
[1752924915772,0.002,118410.0,118400.0,1.11276368]
[1752924916758,0.01888932,118410.0,118400.0,0.9588233]
[1752924916987,0.01044459,118410.0,118400.0,1.11276368]
[1752924921083,0.002,118410.0,118400.0,1.11276368]
[1752924922070,0.01044466,118410.0,118400.0,1.11276368]
[1752924922264,0.002,118410.0,118400.0,1.11276368]
[1752924922698,0.01044459,118410.0,118400.0,1.11276368]
[1752924924732,0.01044459,118410.0,118400.0,0.9588233]
[1752924924939,0.01044459,118410.0,118400.0,1.11276368]
[1752924925088,0.01888932,118410.0,118400.0,1.11276368]
[1752924925328,0.01044459,118410.0,118400.0,1.11276368]
[1752924930728,0.01888932,118410.0,118400.0,1.11276368]
[1752924931137,0.01888925,118410.0,118400.0,1.11276368]
[1752924931664,0.02733412,118410.0,118400.0,1.11276368]
[1752924931869,0.01888925,118410.0,118400.0,1.11276368]
[1752924932086,0.01044459,118410.0,118400.0,1.11276368]
[1752924934402,0.01888932,118410.0,118400.0,1.11276368]
[1752924934813,0.01888925,118410.0,118400.0,1.11276368]
[1752924935019,0.01044459,118410.0,118400.0,1.11276368]
[1752924935899,0.01888925,118410.0,118400.0,1.11276368]
[1752924936406,0.01888925,118410.0,118400.0,0.9588233]
[1752924936608,0.01888925,118410.0,118400.0,1.11276368]
[1752924939419,0.01044459,118410.0,118400.0,1.11276368]
[1752924945595,0.002,118410.0,118400.0,1.11276368]
[1752924946566,0.01044466,118410.0,118400.0,1.11276368]
[1752924946772,0.002,118410.0,118400.0,1.11276368]
[1752924946996,0.01044459,118410.0,118400.0,1.11276368]
[1752924950166,0.01888932,118410.0,118400.0,1.11276368]
[1752924950856,0.01044459,118410.0,118400.0,1.11276368]
[1752924951161,0.01888932,118410.0,118400.0,1.11276368]
[1752924951914,0.01044459,118410.0,118400.0,1.11276368]
[1752924952100,0.01888932,118410.0,118400.0,1.11276368]
[1752924952244,0.01044459,118410.0,118400.0,1.11276368]
[1752924952442,0.01044466,118410.0,118400.0,1.11276368]
[1752924952910,0.002,118410.0,118400.0,1.11276368]
[1752924953158,0.002,118410.0,118400.0,1.26670406]
[1752924953559,0.002,118410.0,118400.0,1.11276368]
[1752924961302,0.01044459,118410.0,118400.0,1.11276368]
[1752924961731,0.01888932,118410.0,118400.0,0.9588233]
[1752924961941,0.01888932,118410.0,118400.0,1.11276368]
[1752924961942,0.01888925,118410.0,118400.0,1.11276368]
[1752924962583,0.01044459,118410.0,118400.0,1.11276368]
[1752924963793,0.002,118410.0,118400.0,1.11276368]
[1752924965015,0.01044466,118410.0,118400.0,1.11276368]
[1752924965235,0.002,118410.0,118400.0,1.11276368]
[1752924966478,0.002,118410.0,118400.0,0.9588233]
[1752924966649,0.002,118410.0,118400.0,1.11276368]
[1752924969084,0.01888939,118410.0,118400.0,1.11276368]
[1752924969295,0.01888932,118410.0,118400.0,1.11276368]
[1752924970201,0.01888925,118410.0,118400.0,1.11276368]
[1752924971086,0.02733405,118410.0,118400.0,1.11276368]
[1752924971326,0.02733405,118410.0,118400.0,1.08742468]
[1752924973911,0.01888925,118410.0,118400.0,1.08742468]
[1752924974220,0.02733405,118410.0,118400.0,1.08742468]
[1752924979180,0.01888925,118410.0,118400.0,1.08742468]
[1752924979588,0.01044459,118410.0,118400.0,1.24136506]
[1752924980209,0.02733419,118410.0,118400.0,0.9334843]
[1752924980431,0.02733419,118410.0,118400.0,1.08742468]
[1752924981800,0.03577913,118410.0,118400.0,0.9334843]
[1752924982024,0.04422429,118410.0,118400.0,1.08742468]
[1752924982938,0.04422478,118410.0,118400.0,0.9334843]
[1752924983134,0.04422478,118410.0,118400.0,1.07132468]
[1752924983353,0.04422471,118410.0,118400.0,1.07132468]
[1752924983774,0.04422471,118410.0,118400.0,1.08632468]
[1752924985015,0.04422471,118410.0,118400.0,0.9323843]
[1752924985221,0.04422471,118410.0,118400.0,1.08632468]
[1752924985627,0.03577955,118410.0,118400.0,1.08632468]
[1752924986151,0.02733454,118410.0,118400.0,1.08632468]
[1752924986354,0.01888953,118410.0,118400.0,1.08632468]
[1752924987286,0.02733447,118410.0,118400.0,1.08632468]
[1752924988731,0.01888953,118410.0,118400.0,1.08632468]
[1752924988993,0.02733447,118410.0,118400.0,1.08632468]
[1752924990758,0.0273344,118410.0,118400.0,1.08632468]
[1752924992639,0.03577934,118410.0,118400.0,1.08632468]
[1752924993339,0.04422443,118410.0,118400.0,1.08632468]
[1752924993479,0.03577934,118410.0,118400.0,1.14643471]
[1752924993839,0.04422443,118410.0,118400.0,1.08632468]
[1752924994303,0.03577934,118410.0,118400.0,1.08632468]
[1752924995726,0.0273344,118410.0,118400.0,1.08632468]
[1752924996330,0.01888953,118410.0,118400.0,1.08632468]
[1752924998096,0.02733447,118410.0,118400.0,1.08632468]
[1752924998711,0.01888953,118410.0,118400.0,1.08632468]
[1752924998874,0.02733447,118410.0,118400.0,1.08632468]
[1752924999076,0.02733454,118410.0,118400.0,1.08632468]
[1752924999719,0.02733447,118410.0,118400.0,1.08632468]
[1752925000017,0.01888953,118410.0,118400.0,1.08632468]
[1752925001778,0.02733447,118410.0,118400.0,1.08632468]
[1752925002431,0.0273344,118410.0,118400.0,1.08632468]
[1752925003127,0.01044473,118410.0,118400.0,1.08632468]
[1752925003859,0.01044473,118410.0,118400.0,1.24026506]
[1752925004119,0.01044473,118410.0,118400.0,0.9323843]
[1752925004281,0.01044466,118410.0,118400.0,1.24026506]
[1752925004687,0.01888946,118410.0,118400.0,1.24026506]
[1752925004887,0.01888939,118410.0,118400.0,1.24026506]
[1752925010487,0.02733426,118410.0,118400.0,1.24026506]
[1752925010900,0.02733426,118410.0,118400.0,0.99249433]
[1752925011084,0.02733426,118410.0,118400.0,1.24026506]
[1752925011486,0.02733426,118410.0,118400.0,0.9323843]
[1752925011702,0.03577927,118410.0,118400.0,1.24026506]
[1752925011925,0.02733426,118410.0,118400.0,1.24026506]
[1752925012099,0.03577927,118410.0,118400.0,0.9323843]
[1752925012229,0.02733426,118410.0,118400.0,0.9323843]
[1752925012451,0.03577927,118410.0,118400.0,0.9323843]
[1752925012981,0.03577927,118410.0,118400.0,1.08632468]
[1752925013806,0.20683392,118410.0,118400.0,0.92248468]
[1752925014014,0.19838969,118410.0,118400.0,1.05080468]
[1752925014231,0.4032167,118410.0,118400.0,0.7634143]
[1752925014433,0.4383267,118410.0,118400.0,0.8948143]
[1752925014848,0.4064267,118410.0,118400.0,0.8948143]
[1752925015052,0.25248632,118410.0,118400.0,0.8948143]
[1752925015198,0.24927632,118410.0,118400.0,0.8948143]
[1752925015773,0.24927632,118410.0,118400.0,1.04875468]
[1752925015989,0.24927632,118410.0,118400.0,0.8948143]
[1752925016230,0.24927632,118410.0,118400.0,1.04875468]
[1752925022125,0.24927632,118410.0,118400.0,0.7634143]
[1752925022334,0.24927632,118410.0,118400.0,1.04871468]
[1752925023648,0.24927632,118410.0,118400.0,0.8947743]
[1752925023906,0.24927632,118410.0,118400.0,1.04871468]
[1752925025172,0.24927632,118410.0,118400.0,0.8947743]
[1752925025362,0.24927632,118410.0,118400.0,1.04871468]
[1752925026050,0.18149981,118410.0,118400.0,1.04871468]
[1752925026275,0.18149981,118410.0,118400.0,1.05075468]
[1752925026537,0.18149981,118410.0,118400.0,0.8998943]
[1752925026752,0.18149981,118410.0,118400.0,1.05383468]
[1752925029128,0.0294844,118410.0,118400.0,1.07003468]
[1752925029302,0.03792956,118410.0,118400.0,1.07003468]
[1752925029869,0.03792949,118410.0,118400.0,1.07003468]
[1752925030809,0.03792949,118410.0,118400.0,0.9160943]
[1752925031019,0.03792949,118410.0,118400.0,1.07003468]
[1752925031232,0.02733433,118410.0,118400.0,1.23957506]
[1752925031444,0.01888939,118410.0,118400.0,1.23957506]
[1752925031683,0.02733426,118410.0,118400.0,1.23957506]
[1752925032039,0.03577927,118410.0,118400.0,1.23957506]
[1752925032249,0.02733426,118410.0,118400.0,1.23957506]
[1752925032478,0.01044459,118410.0,118400.0,1.23957506]
[1752925032683,0.01888939,118410.0,118400.0,1.23957506]
[1752925032890,0.002,118410.0,118400.0,1.23957506]
[1752925037228,0.002,118410.0,118400.0,0.9316943]
[1752925037666,0.002,118410.0,118400.0,1.23957506]
[1752925037989,0.01044459,118410.0,118400.0,0.9316943]
[1752925038216,0.01044459,118410.0,118400.0,1.23957506]
[1752925040660,0.01888932,118410.0,118400.0,0.9316943]
[1752925040781,0.02733419,118410.0,118400.0,1.23957506]
[1752925040992,0.01888932,118410.0,118400.0,1.23957506]
[1752925042504,0.02733412,118410.0,118400.0,1.23957506]
[1752925044917,0.03577899,118410.0,118400.0,1.23957506]
[1752925045670,0.03577899,118410.0,118400.0,0.9316943]
[1752925045873,0.03577899,118410.0,118400.0,1.23957506]
[1752925046311,0.04422393,118410.0,118400.0,1.23957506]
[1752925046522,0.04422393,118410.0,118400.0,1.44213506]
[1752925046523,0.03577899,118410.0,118400.0,1.44213506]
[1752925047378,0.03577899,118410.0,118400.0,1.1342543]
[1752925047583,0.03577899,118410.0,118400.0,1.44213506]
[1752925047974,0.03577899,118410.0,118400.0,1.1342543]
[1752925048191,0.044224,118410.0,118400.0,1.28819468]
[1752925048415,0.03577899,118410.0,118400.0,1.28819468]
[1752925048627,0.03577899,118410.0,118400.0,1.44213506]
[1752925051160,0.044224,118410.0,118400.0,1.44213506]
[1752925051371,0.04422393,118410.0,118400.0,1.31077506]
[1752925051595,0.04422393,118410.0,118400.0,1.44189506]
[1752925052084,0.01888932,118410.0,118400.0,1.44189506]
[1752925052944,0.02733419,118410.0,118400.0,1.44189506]
[1752925053162,0.01888932,118410.0,118400.0,1.44189506]
[1752925053384,0.02733419,118410.0,118400.0,1.44189506]
[1752925056425,0.02733419,118410.0,118400.0,1.31077506]
[1752925056642,0.02733419,118410.0,118400.0,1.44185506]
[1752925060116,0.02733419,118410.0,118400.0,1.31077506]
[1752925060323,0.02733419,118410.0,118400.0,1.44181506]
[1752925061070,0.01888932,118410.0,118400.0,1.44181506]
[1752925061286,0.01044459,118410.0,118400.0,1.44181506]
[1752925061932,0.002,118410.0,118400.0,1.44181506]
[1752925062146,0.01044466,118410.0,118400.0,1.44181506]
[1752925062967,0.01888939,118410.0,118400.0,1.44181506]
[1752925064525,0.01044459,118410.0,118400.0,1.44181506]
[1752925065273,0.01888925,118410.0,118400.0,1.44181506]
[1752925066131,0.01044459,118410.0,118400.0,1.44181506]
[1752925067596,0.01888932,118410.0,118400.0,1.44181506]
[1752925067795,0.01044459,118410.0,118400.0,1.44181506]
[1752925068231,0.01888932,118410.0,118400.0,1.44181506]
[1752925068626,0.01044459,118410.0,118400.0,1.44181506]
[1752925068823,0.01888932,118410.0,118400.0,1.44181506]
[1752925069166,0.01044459,118410.0,118400.0,1.44181506]
[1752925069404,0.02733412,118410.0,118400.0,1.44181506]
[1752925069605,0.02733405,118410.0,118400.0,1.45010267]
[1752925070671,0.03577892,118410.0,118400.0,1.45010267]
[1752925073935,0.01044459,118410.0,118400.0,1.45010267]
[1752925074135,0.002,118410.0,118400.0,1.45010267]
[1752925074362,0.01044459,118410.0,118400.0,1.45010267]
[1752925074553,0.01888932,118410.0,118400.0,1.45010267]
[1752925074752,0.01044459,118410.0,118400.0,1.45010267]
[1752925075523,0.002,118410.0,118400.0,1.45010267]
[1752925076781,0.01044459,118410.0,118400.0,1.45010267]
[1752925077148,0.002,118410.0,118400.0,1.45010267]
[1752925079175,0.01044459,118410.0,118400.0,1.14222191]
[1752925079374,0.002,118410.0,118400.0,1.45010267]
[1752925079588,0.01044459,118410.0,118400.0,1.45010267]
[1752925079794,0.002,118410.0,118400.0,1.45010267]
[1752925079962,0.01888939,118410.0,118400.0,1.45010267]
[1752925080501,0.01044459,118410.0,118400.0,1.45010267]
[1752925080747,0.01888932,118410.0,118400.0,1.45010267]
[1752925082033,0.01888925,118410.0,118400.0,1.45010267]
[1752925082228,0.01044459,118410.0,118400.0,1.45010267]
[1752925083059,0.02733419,118410.0,118400.0,1.45010267]
[1752925083266,0.01888932,118410.0,118400.0,1.45010267]
[1752925083480,0.02733419,118410.0,118400.0,1.45010267]
[1752925083720,0.01888932,118410.0,118400.0,1.45010267]
[1752925084152,0.01044459,118410.0,118400.0,1.45010267]
[1752925084708,0.01888925,118410.0,118400.0,1.45010267]
[1752925084910,0.02733405,118410.0,118400.0,1.45010267]